[Event "FIDE World School-ch O-13 2025"]
[Site "Vrnjacka Banja"]
[Date "2025.03.26"]
[Round "7.1"]
[White "Yurasov, Matfey"]
[Black "Samarth Sreeni Warrier"]
[Result "1-0"]
[Annotator "TA"]
[ECO "E04"]
[WhiteElo "2271"]
[BlackElo "1913"]
[PlyCount "139"]
[EventDate "2025.03.19"]
[EventType "swiss"]
[EventCountry "SRB"]
[SourceTitle "playchess.com"]
[Source "ChessBase"]
[SourceQuality "1"]
[TimeControl "5400+30"]

{[%evp 20,138,12,15,14,0,0,0,0,0,75,87,104,110,103,99,139,133,134,125,135,132,130,111,132,135,141,126,217,227,228,224,236,225,197,208,222,221,422,414,337,339,519,500,486,500,480,404,399,400,392,342,452,431,448,433,458,459,424,427,418,385,516,508,553,554,516,487,29969,29968,29969,29972,29966,29969,29980,29981,29979,29982,29982,29983,29983,29984,29984,29984,29984,29985,29986,29987,29987,29987,29989,29990,29990,29991,29992,29993,29993,29994,29994,29994,29994,29995,29995,29995,29996,29996,29996,29995,29995,29996,29996,29996,29996,29996,29996,29997,29997,29998,29998,29999,29999]} 1. Nf3 {[%emt 0:01:30]} Nf6 {[%emt 0:00:25]} 2. g3 {[%emt 0:00:09]} d5 {[%emt 0:00:02]} 3. Bg2 {[%emt 0:00:06]} c5 {[%emt 0:00:05]} 4. O-O {[%emt 0:01:58]} Nc6 {[%emt 0:00:06]} 5. d4 {[%emt 0:02:57]} e6 {[%emt 0:00:20]} 6. c4 {[%emt 0:00:42]} dxc4 {[%emt 0:00:12]} 7. Ne5 {[%emt 0:13:06]} Bd7 {[%emt 0:01:20]} 8. Na3 {[%emt 0:06:21][%cal Bb1a3,Ba3c4,Bc4e5][%mdl 32]} cxd4 {[%emt 0:00:23]} 9. Naxc4 {[%emt 0:00:12]} Rc8 {[%emt 0:07:58]} 10. Qb3 {[%emt 0:02:42]} Nxe5 {[%emt 0:01:43]} 11. Nxe5 {[%emt 0:00:11][%cal Of1d1]} Bd6 {[%emt 0:01:18] E04: Open Catalan: 5 Nf3.} 12. Bf4 {[%emt 0:06:22][%cal Bc1f4,Bf4e5,Be5d4][%mdl 32]} (12. Nxd7 {simplifies} Qxd7 13. Rd1 Be5 14. Qxb7 Qxb7 15. Bxb7 Rc7 16. Ba6) 12... Bc6 {[%emt 0:03:08] Threatens to win with ...Bxg2.} 13. Rfd1 {[%emt 0:02:00]} Bxg2 {[%emt 0:26:23] The position is equal.} 14. Kxg2 {[%emt 0:00:15] A sharp opening} Bxe5 $146 {[%emt 0:08:54]} (14... O-O $1 $11 {remains equal.} 15. Rxd4 Nd5) (14... O-O 15. Rxd4 Nd5 16. Rad1 Qc7 17. Nd3 Qc6 18. e4 Nxf4+ 19. gxf4 b5 20. Nb4 Bxb4 21. Qxb4 h6 22. R1d3 Qc1 23. Rd2 a6 24. a4 bxa4 {½-½ Hamilton,D (2006)-Biedermann,K (1981) W-ch WS/H/281 email 2011}) 15. Bxe5 $16 {[%emt 0:00:15]} Qd5+ {[%emt 0:01:01]} 16. Qxd5 {[%emt 0:00:08]} exd5 {[%emt 0:01:23]} 17. Bxd4 {[%emt 0:09:28] White is more active.} O-O {[%emt 0:03:12]} 18. Rac1 {[%emt 0:00:37]} ({Resist} 18. Bxa7 Rc2 $14) (18. Bxf6 gxf6 19. Rac1 (19. Rxd5 Rc2 $14) 19... Rc6 $16) 18... a6 {[%emt 0:01:41]} 19. f3 {[%emt 0:00:54]} Rfe8 {[%emt 0:05:36]} 20. Kf2 {[%emt 0:00:08]} Nd7 {[%emt 0:01:18]} 21. b3 {[%emt 0:05:03]} f5 {[%emt 0:02:35]} 22. Bb2 {[%emt 0:10:23]} Nb6 {[%emt 0:00:30]} 23. a4 {[%emt 0:00:16]} a5 {[%emt 0:02:41]} (23... g6 $16 24. a5 Nd7 25. Rxd5 Rxc1 26. Bxc1 Nb8) 24. Bc3 $18 {[%emt 0:00:25]} Rc5 {[%emt 0:03:27]} 25. Bd4 {[%emt 0:08:37]} Rxc1 {[%emt 0:00:18]} 26. Rxc1 {[%emt 0:00:01]} Rc8 {[%emt 0:00:38]} 27. Rxc8+ {[%emt 0:02:44]} Nxc8 {[%emt 0:01:05][%mdl 4096] Endgame KB-KN} 28. Bc3 {[%emt 0:00:07]} b6 $2 {[%emt 0:02:55] [#]} (28... Ne7 29. Bxa5 d4) 29. Ke3 {[%emt 0:00:26]} Kf7 {[%emt 0:01:29]} 30. Kf4 {[%emt 0:00:09]} Ke6 {[%emt 0:00:09]} (30... Ne7 $142 31. Ke5 h5) 31. Bxg7 {[%emt 0:00:32]} Nd6 {[%emt 0:00:58]} 32. Bd4 {[%emt 0:00:26]} b5 {[%emt 0:02:13]} 33. axb5 {[%emt 0:00:21]} Nxb5 {[%emt 0:00:03]} 34. Ke3 {[%emt 0:00:25]} Nd6 {[%emt 0:00:37]} 35. Bc5 {[%emt 0:00:21] [#] Strongly threatening Bxd6.} Nb7 {[%emt 0:03:28]} 36. Ba3 {[%emt 0:00:23]} Ke5 {[%emt 0:01:20]} 37. Bb2+ {[%emt 0:00:08]} Ke6 {[%emt 0:04:22]} 38. Kd4 {[%emt 0:00:08] Prevents Nc5.} Kd6 {[%emt 0:00:06]} 39. Ba3+ {[%emt 0:00:17]} Ke6 {[%emt 0:00:01]} 40. e3 {[%emt 0:00:38]} h5 {[%emt 0:00:45]} 41. Bf8 {[%emt 0:00:30]} Kf7 {[%emt 0:00:29]} 42. Bh6 {[%emt 0:00:01]} Ke6 {[%emt 0:00:06]} 43. Bf4 {[%emt 0:00:08]} Nd6 {[%emt 0:01:30]} (43... Nd8 $18 44. Kc5 Nb7+ 45. Kb6 Nd8 46. Kxa5 d4 47. exd4 Nc6+ 48. Ka6 Nxd4) 44. Bxd6 {[%emt 0:00:53] White mates.} Kxd6 {[%emt 0:00:01] KP-KP. White is a pawn up.} 45. h3 {[%emt 0:00:08]} Ke6 {[%emt 0:02:23]} 46. g4 {[%emt 0:00:36]} hxg4 {[%emt 0:00:32]} 47. hxg4 {[%emt 0:00:09]} fxg4 {[%emt 0:00:46]} 48. fxg4 {[%emt 0:00:00] K3P-KPP. White is a pawn up.} Kd6 {[%emt 0:00:08]} 49. g5 {[%emt 0:00:06]} Ke6 {[%emt 0:00:05]} 50. g6 {[%emt 0:00:10]} Kf6 {[%emt 0:00:03]} 51. Kxd5 {[%emt 0:00:04]} Kxg6 {[%emt 0:00:03] KPP-KP. White is a pawn up.} 52. Ke6 {[%emt 0:00:10]} Kg5 {[%emt 0:00:02]} 53. e4 {[%emt 0:00:07]} Kf4 {[%emt 0:00:01]} 54. Kd5 {[%emt 0:00:09]} Ke3 {[%emt 0:00:04]} 55. e5 {[%emt 0:00:14]} Kd3 {[%emt 0:00:01]} 56. e6 {[%emt 0:00:32]} Kc3 {[%emt 0:00:02]} 57. e7 {[%emt 0:00:06]} Kxb3 {[%emt 0:00:01]} 58. e8=Q {[%emt 0:00:06]} a4 {[%emt 0:00:05]} 59. Qb5+ {[%emt 0:00:09]} Kc3 {[%emt 0:00:08]} 60. Qxa4 {[%emt 0:00:04]} Kd3 {[%emt 0:00:06]} 61. Qb3+ {[%emt 0:00:06]} Kd2 {[%emt 0:00:09]} 62. Kd4 {[%emt 0:00:06]} Ke2 {[%emt 0:00:01]} 63. Qc2+ {[%emt 0:00:10]} Kf3 {[%emt 0:00:01]} 64. Qe4+ {[%emt 0:35:55]} Kf2 {[%emt 0:00:09]} 65. Ke5 {[%emt 0:00:00]} Kg3 {[%emt 0:00:02]} 66. Kf5 {[%emt 0:00:00]} Kf2 {[%emt 0:00:06]} 67. Kg4 {[%emt 0:00:00]} Kg1 {[%emt 0:00:05]} 68. Qc2 {[%emt 0:00:00]} Kf1 {[%emt 0:00:05]} 69. Kf3 {[%emt 0:00:00][%cal Rc2b1]} Kg1 {[%emt 0:00:05]} 70. Qg2# {[%emt 0:00:00] White took control after the opening.   Weighted Error Value: White=0.04 (flawless) /Black=0.29 (precise)   Mistake:       	---       	Black=5      Inaccurate:     	---       	Black=3      OK:         	White=21    	Black=12     Best:        	White=3     	Black=2} 1-0

[Event "FIDE World School-ch O-13 2025"]
[Site "Vrnjacka Banja"]
[Date "2025.03.26"]
[Round "7.2"]
[White "Obidov, Biloliddin"]
[Black "Kudrin, Ivan"]
[Result "1/2-1/2"]
[Annotator "NA RC"]
[ECO "C65"]
[WhiteElo "2020"]
[BlackElo "1977"]
[PlyCount "160"]
[EventDate "2025.03.19"]
[EventType "swiss"]
[EventCountry "SRB"]
[SourceTitle "playchess.com"]
[Source "ChessBase"]
[SourceQuality "1"]
[TimeControl "5400+30"]

1. e4 {[%emt 0:00:34]} e5 {[%emt 0:01:49]} 2. Nf3 {[%emt 0:00:13]} Nc6 {[%emt 0:00:04]} 3. Bb5 {[%emt 0:00:38]} Nf6 {[%emt 0:00:06]} 4. d3 {[%emt 0:00:34]} Ne7 {[%emt 0:00:16]} 5. O-O {[%emt 0:01:38]} Ng6 {[%emt 0:04:44]} 6. d4 {[%emt 0:05:44]} c6 {[%emt 0:04:03]} 7. Bd3 {[%emt 0:10:30]} d6 {[%emt 0:01:20]} 8. h3 {[%emt 0:07:32]} Be7 {[%emt 0:00:46]} 9. Re1 {[%emt 0:00:35]} O-O {[%emt 0:01:02]} 10. Nbd2 {[%emt 0:00:09]} Re8 {[%emt 0:20:06]} 11. Nf1 {[%emt 0:05:35]} Bf8 {[%emt 0:04:21]} 12. Ng3 {[%emt 0:01:39]} h6 {[%emt 0:00:43]} 13. c3 {[%emt 0:01:09]} Be6 {[%emt 0:03:19]} 14. a4 {[%emt 0:01:31]} a5 {[%emt 0:03:54]} 15. Bd2 {[%emt 0:06:31]} Qc7 {[%emt 0:01:50]} 16. b4 {[%emt 0:02:52]} axb4 {[%emt 0:07:03]} 17. cxb4 {[%emt 0:00:14]} exd4 {[%emt 0:01:40]} 18. Nxd4 {[%emt 0:01:03]} Bd7 {[%emt 0:01:11]} 19. Nh5 {[%emt 0:09:29]} Be7 {[%emt 0:09:03]} 20. Nf4 {[%emt 0:07:27]} Ne5 {[%emt 0:03:32]} 21. Bf1 {[%emt 0:01:09]} Qb8 {[%emt 0:03:52]} 22. Bc3 {[%emt 0:04:34]} Bd8 {[%emt 0:04:22]} 23. a5 {[%emt 0:06:41]} b6 {[%emt 0:10:06]} 24. Nf3 {[%emt 0:01:39]} Bc7 {[%emt 0:03:57]} 25. Nxe5 {[%emt 0:01:14]} dxe5 {[%emt 0:00:07]} 26. Nh5 {[%emt 0:00:20]} Nxh5 {[%emt 0:02:21]} 27. Qxd7 {[%emt 0:00:02]} Re6 {[%emt 0:01:06]} 28. a6 {[%emt 0:07:28]} b5 {[%emt 0:00:50]} 29. Red1 {[%emt 0:01:35]} Nf6 {[%emt 0:01:37]} 30. Qd3 {[%emt 0:00:06]} Qb6 {[%emt 0:00:08]} 31. Bd2 {[%emt 0:05:51]} Rxa6 {[%emt 0:00:34]} 32. Be3 {[%emt 0:00:02]} Qb7 {[%emt 0:06:38]} 33. Rac1 {[%emt 0:01:18]} Ra8 {[%emt 0:00:00]} 34. Qc2 {[%emt 0:01:39]} Bb6 {[%emt 0:00:00]} 35. Bxb6 {[%emt 0:00:53]} Qxb6 {[%emt 0:00:00]} 36. Rd2 {[%emt 0:00:14]} Kh7 {[%emt 0:00:00]} 37. Rcd1 {[%emt 0:00:32]} Qc7 {[%emt 0:00:00]} 38. Bxb5 {[%emt 0:00:32]} Rb8 {[%emt 0:00:00]} 39. Bc4 {[%emt 0:01:43]} Re7 {[%emt 0:00:00]} 40. Rb1 {[%emt 0:01:38]} Rd7 {[%emt 0:00:00]} 41. Rxd7 {[%emt 0:00:58]} Qxd7 {[%emt 0:00:00]} 42. Qb3 {[%emt 0:00:28]} Kg8 {[%emt 0:00:00]} 43. f3 {[%emt 0:01:51]} Nh5 {[%emt 0:00:56]} 44. b5 {[%emt 0:01:20]} cxb5 {[%emt 0:00:18]} 45. Bxb5 {[%emt 0:00:11]} Qd4+ {[%emt 0:01:28]} 46. Kh2 {[%emt 0:00:05]} Qd2 {[%emt 0:01:46]} 47. Qd3 {[%emt 0:01:58]} Qf4+ {[%emt 0:01:38]} 48. Kh1 {[%emt 0:00:48]} Qg5 {[%emt 0:01:06]} 49. Bc4 {[%emt 0:00:33]} Rd8 {[%emt 0:00:19]} 50. Bd5 {[%emt 0:00:53]} Nf4 {[%emt 0:00:31]} 51. Qc2 {[%emt 0:00:58]} h5 {[%emt 0:00:51]} 52. Rd1 {[%emt 0:00:32]} h4 {[%emt 0:00:29]} 53. Rd2 {[%emt 0:00:30]} Rf8 {[%emt 0:00:11]} 54. Ba2 {[%emt 0:00:38]} Nh5 {[%emt 0:00:13]} 55. Rd7 {[%emt 0:00:20]} Ng3+ {[%emt 0:00:15]} 56. Kg1 {[%emt 0:00:51]} Qe3+ {[%emt 0:00:17]} 57. Kh2 {[%emt 0:00:14]} g6 {[%emt 0:00:33]} 58. Rd1 {[%emt 0:00:38]} Kg7 {[%emt 0:01:31]} 59. Qd3 {[%emt 0:00:22]} Qf4 {[%emt 0:00:10]} 60. Kg1 {[%emt 0:00:36]} Ra8 {[%emt 0:00:32]} 61. Qd2 {[%emt 0:00:35]} Qf6 {[%emt 0:00:06]} 62. Bd5 {[%emt 0:00:22]} Ra3 {[%emt 0:00:08]} 63. Rb1 {[%emt 0:00:38]} Qe7 {[%emt 0:01:40]} 64. Kh2 {[%emt 0:00:26]} Qa7 {[%emt 0:00:29]} 65. Qg5 {[%emt 0:00:22]} Rxf3 {[%emt 0:00:30]} 66. Qxe5+ {[%emt 0:00:48]} Kh7 {[%emt 0:00:04]} 67. Qg5 {[%emt 0:00:36]} Nf1+ {[%emt 0:00:39]} 68. Kh1 {[%emt 0:00:27]} Qf2 {[%emt 0:00:43]} 69. Qg4 {[%emt 0:00:25]} Rf4 {[%emt 0:00:26]} 70. Qd1 {[%emt 0:00:37]} Ng3+ {[%emt 0:00:35]} 71. Kh2 {[%emt 0:00:02]} Ne2 {[%emt 0:00:34]} 72. Qe1 {[%emt 0:00:28]} Qe3 {[%emt 0:00:29]} 73. Rb3 {[%emt 0:00:39]} Qc1 {[%emt 0:00:31]} 74. Qxe2 {[%emt 0:00:54]} Rf1 {[%emt 0:00:06]} 75. Qxf1 {[%emt 0:00:14]} Qxf1 {[%emt 0:00:05]} 76. Rf3 {[%emt 0:00:05]} Qa1 {[%emt 0:00:03]} 77. Rxf7+ {[%emt 0:00:11]} Kh6 {[%emt 0:00:05]} 78. Rf3 {[%emt 0:00:17]} Qe1 {[%emt 0:00:27]} 79. Rb3 {[%emt 0:00:14]} Kg5 {[%emt 0:00:10]} 80. Rf3 {[%emt 0:00:18]} Qd2 {[%emt 0:00:11]} 1/2-1/2

[Event "FIDE World School-ch O-13 2025"]
[Site "Vrnjacka Banja"]
[Date "2025.03.26"]
[Round "7.3"]
[White "Kuntelia, Luka"]
[Black "Zharas, Aldiyar"]
[Result "0-1"]
[Annotator "NA RC"]
[ECO "B30"]
[WhiteElo "1895"]
[BlackElo "1924"]
[PlyCount "68"]
[EventDate "2025.03.19"]
[EventType "swiss"]
[EventCountry "SRB"]
[SourceTitle "playchess.com"]
[Source "ChessBase"]
[SourceQuality "1"]
[TimeControl "5400+30"]

1. e4 {[%emt 0:00:01]} c5 {[%emt 0:00:06]} 2. Nf3 {[%emt 0:00:04]} Nc6 {[%emt 0:00:07]} 3. Bb5 {[%emt 0:00:05]} e6 {[%emt 0:00:11]} 4. O-O {[%emt 0:00:14]} Nge7 {[%emt 0:00:04]} 5. Re1 {[%emt 0:00:09]} Nd4 {[%emt 0:00:06]} 6. Nxd4 {[%emt 0:00:45]} cxd4 {[%emt 0:00:06]} 7. c3 {[%emt 0:00:10]} a6 {[%emt 0:00:04]} 8. Bd3 {[%emt 0:04:13]} Nc6 {[%emt 0:00:15]} 9. b4 {[%emt 0:12:19]} Be7 {[%emt 0:04:35]} 10. Bb2 {[%emt 0:02:33]} Bf6 {[%emt 0:00:53]} 11. Qe2 {[%emt 0:03:30]} Qc7 {[%emt 0:03:01]} 12. a4 {[%emt 0:03:45]} dxc3 {[%emt 0:10:55]} 13. dxc3 {[%emt 0:02:02]} b6 {[%emt 0:01:24]} 14. Na3 {[%emt 0:01:22]} Ne5 {[%emt 0:07:41]} 15. Nc4 {[%emt 0:12:34]} Bb7 {[%emt 0:12:29]} 16. Nxe5 {[%emt 0:07:56]} Bxe5 {[%emt 0:00:19]} 17. h3 {[%emt 0:00:23]} O-O {[%emt 0:03:51]} 18. c4 {[%emt 0:04:47]} d6 {[%emt 0:07:20]} 19. a5 {[%emt 0:13:49]} bxa5 {[%emt 0:06:33]} 20. Rxa5 {[%emt 0:00:34]} Qb6 {[%emt 0:11:00]} 21. Qd2 {[%emt 0:01:08]} Bxb2 {[%emt 0:00:09]} 22. Qxb2 {[%emt 0:00:09]} Rfb8 {[%emt 0:00:35]} 23. Qc3 {[%emt 0:04:29]} Bc8 {[%emt 0:08:24]} 24. Rb1 {[%emt 0:01:30]} e5 {[%emt 0:00:52]} 25. Rd5 {[%emt 0:07:32]} Be6 {[%emt 0:16:26]} 26. c5 {[%emt 0:00:42]} dxc5 {[%emt 0:00:04]} 27. bxc5 {[%emt 0:01:18]} Qc7 {[%emt 0:00:21]} 28. Rxb8+ {[%emt 0:00:19]} Qxb8 {[%emt 0:01:46]} 29. Rxe5 {[%emt 0:00:58]} a5 {[%emt 0:00:45]} 30. c6 {[%emt 0:00:42]} Qc7 {[%emt 0:02:01]} 31. Rb5 {[%emt 0:01:57]} a4 {[%emt 0:01:23]} 32. Rb7 {[%emt 0:00:33]} Qc8 {[%emt 0:00:10]} 33. Bc4 {[%emt 0:01:10]} Qxc6 {[%emt 0:00:49]} 34. Rxf7 {[%emt 0:00:23]} Kxf7 {[%emt 0:00:40]} 0-1

[Event "FIDE World School-ch O-13 2025"]
[Site "Vrnjacka Banja"]
[Date "2025.03.26"]
[Round "7.4"]
[White "Haresh, Venkata Narayanaswam"]
[Black "Wijerathna, Vinuka Dihain"]
[Result "1/2-1/2"]
[Annotator "TA"]
[ECO "C78"]
[WhiteElo "1824"]
[BlackElo "2117"]
[PlyCount "128"]
[EventDate "2025.03.19"]
[EventType "swiss"]
[EventCountry "SRB"]
[SourceTitle "playchess.com"]
[Source "ChessBase"]
[SourceQuality "1"]
[TimeControl "5400+30"]

{[%evp 15,128,-8,-3,-8,-4,-87,-102,-60,-87,-87,0,0,0,0,0,-74,-88,-112,-4,-39,-16,-21,44,57,56,48,43,57,43,28,44,5,49,55,58,47,43,40,39,32,38,26,29,35,24,35,41,0,0,0,0,0,0,0,0,0,4,4,12,9,9,-5,-30,-27,-8,-6,0,0,46,0,54,29,24,29,72,10,177,187,171,155,179,-52,-43,-51,-41,-33,-46,-47,-42,-159,-60,-142,82,86,81,12,50,79,60,47,35,0,0,0,0,0,0,0,0,0,0,0,0,0,0]} 1. e4 {[%emt 0:00:04]} e5 {[%emt 0:01:13]} 2. Nf3 {[%emt 0:00:12]} Nc6 {[%emt 0:00:08]} 3. Bb5 {[%emt 0:00:11]} a6 {[%emt 0:00:08]} 4. Ba4 {[%emt 0:00:10]} Nf6 {[%emt 0:00:07]} 5. O-O {[%emt 0:00:09]} b5 {[%emt 0:00:03]} 6. Bb3 {[%emt 0:00:11]} Bb7 {[%emt 0:00:05]} 7. c3 {[%emt 0:02:48]} Nxe4 {[%emt 0:02:52]} 8. Re1 {[%emt 0:03:43]} Nc5 {[%emt 0:00:04] 8...d5 is more advanced technology.} 9. Bc2 {[%emt 0:07:30] C78: Ruy Lopez: Archangelsk and Möller Defences.} Ne6 {[%emt 0:09:57]} 10. Nxe5 {[%emt 0:06:08]} (10. d4 $1 $11 exd4 11. cxd4) 10... Nxe5 $17 {[%emt 0:00:05]} 11. Rxe5 {[%emt 0:00:14] Black is better.} Bd6 {[%emt 0:00:05]} 12. Re3 $146 {[%emt 0:06:19]} ({Predecessor:} 12. Re1 Qh4 13. g3 Qh3 14. Be4 Bxe4 15. Rxe4 h5 16. Qf3 Rd8 17. Rh4 Ng5 18. Qe3+ {1-0 Kamsky,G (2616)-Khoroshev,N (2352) Titled Tuesday intern op 19th Mar Early blitz 2024 (6)}) 12... Qf6 {[%emt 0:08:15]} (12... Qg5 $17 {[%csl Gb7][%cal Rg5g2]} 13. Be4 Bxe4 14. Rxe4 Qg6) 13. d4 $11 {[%emt 0:06:46]} Bf4 {[%emt 0:04:12] A sharp opening} 14. Re1 {[%emt 0:07:10] Bxf4 would now be deadly.} O-O {[%emt 0:04:33]} 15. Bxf4 {[%emt 0:08:29]} (15. Nd2 $11) 15... Nxf4 $17 {[%emt 0:00:10]} 16. Be4 {[%emt 0:01:06]} d5 {[%emt 0:19:21]} (16... Bxe4 $17 17. Rxe4 Rae8) 17. Bc2 {[%emt 0:06:17]} (17. Bf3 Rae8 18. Rxe8 Rxe8 19. Na3) 17... Rae8 {[%emt 0:01:10]} 18. Nd2 {[%emt 0:05:50]} Qg5 {[%emt 0:06:06]} (18... Bc8 $11 19. Qf3 Qg5) 19. g3 $1 $14 {[%emt 0:01:37]} Bc8 {[%emt 0:08:21]} 20. Nf3 {[%emt 0:09:41]} Nh3+ {[%emt 0:00:04]} 21. Kg2 {[%emt 0:01:14]} Qf6 {[%emt 0:00:28]} 22. Qd2 {[%emt 0:06:58]} (22. Re5 {keeps more tension.} Bg4 23. Qd3 Qh6 24. Rxe8 Rxe8 25. Ne5) 22... Bg4 {[%emt 0:03:22]} 23. Re3 {[%emt 0:00:18]} Ng5 {[%emt 0:14:04]} (23... Qh6 $5) 24. Nxg5 {[%emt 0:01:58]} Qxg5 {[%emt 0:00:04]} 25. h3 {[%emt 0:01:04]} Bd7 {[%emt 0:00:51]} (25... Rxe3 26. Qxe3 Qxe3 27. fxe3 $17) 26. Rae1 {[%emt 0:01:55]} g6 {[%emt 0:02:14]} 27. Qd1 {[%emt 0:01:59]} Qf6 {[%emt 0:01:50]} 28. R1e2 {[%emt 0:05:02]} Kg7 {[%emt 0:02:25]} 29. Qe1 {[%emt 0:01:36]} Rxe3 {[%emt 0:01:01]} 30. Rxe3 {[%emt 0:00:02]} Qd6 {[%emt 0:00:29]} 31. b4 {[%emt 0:01:48]} Ra8 {[%emt 0:01:11]} 32. Bd3 {[%emt 0:01:57]} Be6 {[%emt 0:01:11]} 33. f4 {[%emt 0:01:03]} a5 {[%emt 0:00:09]} 34. a3 {[%emt 0:01:31]} axb4 {[%emt 0:00:54]} 35. axb4 {[%emt 0:00:01]} Qc6 {[%emt 0:00:56]} 36. g4 {[%emt 0:01:01]} Bd7 {[%emt 0:03:21]} 37. Re7 {[%emt 0:02:46]} Kf8 {[%emt 0:02:27]} (37... Ra2+ 38. Re2 Rxe2+ 39. Bxe2 Qe6) 38. f5 {[%emt 0:02:00][%cal Of5f6] Prevents Be6} (38. Re2 {simplifies} Ra3 39. Rc2 h6 40. Qc1) 38... Ra2+ {[%emt 0:01:51] Counterplay White} 39. Kf3 {[%emt 0:00:37]} gxf5 {[%emt 0:02:54]} 40. Bxf5 {[%emt 0:00:26]} Bxf5 {[%emt 0:00:21]} 41. gxf5 $11 {[%emt 0:00:12][%mdl 4096] Endgame KQR-KQR} Ra3 {[%emt 0:01:14]} (41... Rh2 $11) 42. Re3 {[%emt 0:00:19]} (42. Kg4 $1 $14 h5+ 43. Kxh5 Rxc3 44. Qe5) 42... Qd7 {[%emt 0:00:13]} ({Better is} 42... h5 $11) 43. Kf4 {[%emt 0:00:29]} Qd6+ {[%emt 0:00:50]} 44. Kg4 {[%emt 0:00:26]} Ra8 {[%emt 0:00:33] Against Re8+} 45. Qh4 {[%emt 0:00:21]} (45. Re5 $16) 45... Kg7 $2 {[%emt 0:00:03]} (45... Ra1 $1 $11) 46. Qg5+ $18 {[%emt 0:00:53]} Kh8 {[%emt 0:00:06]} 47. f6 {[%emt 0:00:51][%csl Gf6][%cal Rg5g7]} Qd7+ {[%emt 0:00:00] [#]} 48. Kf3 $2 {[%emt 0:00:24]} (48. Kh5 Rg8 49. Qf4 Qc8 $14) (48. Kh4 $1 $18 {[%csl Gf6][%cal Rg5g7]} Rg8 49. Re7) 48... Rg8 $15 {[%emt 0:00:18] Against Qg7+} ({But not} 48... Qxh3+ 49. Kf4 Qf1+ 50. Kg3 Qg1+ (50... Rg8 51. Qxg8+ Kxg8 52. Re8#) 51. Kh4 Qh1+ 52. Rh3 Qe1+ 53. Rg3 Qh1+ 54. Rh3 Qe1+ 55. Qg3 Qe4+ 56. Qg4 $11) 49. Qh5 {[%emt 0:00:36]} Rg6 $36 {[%emt 0:01:03][%mdl 2048] Black has some pressure.} 50. Ke2 {[%emt 0:00:31]} Rxf6 {[%emt 0:00:15]} 51. Qe5 {[%emt 0:00:11]} Qd6 {[%emt 0:00:05]} 52. Rf3 {[%emt 0:00:47]} (52. Qxd6 $15 Rxd6 53. Kf3) 52... Qxe5+ $17 {[%emt 0:00:06]} 53. dxe5 {[%emt 0:00:05] KR-KR. Black is a pawn up.} Re6 {[%emt 0:02:34]} (53... Rxf3 $17 {and life is bright.} 54. Kxf3 Kg7) 54. Rxf7 $16 {[%emt 0:00:11]} Rxe5+ {[%emt 0:00:07] [#]} 55. Kd3 {[%emt 0:00:19] White is more active.} (55. Kd2 $1 $16) 55... Rh5 {[%emt 0:00:52]} 56. Rxc7 {[%emt 0:00:32]} Rxh3+ {[%emt 0:00:09]} 57. Kd4 {[%emt 0:00:10][%cal Oc7c5]} h5 {[%emt 0:00:53]} 58. Kxd5 {[%emt 0:00:19]} h4 {[%emt 0:00:26] The position is equal.} 59. Ke4 {[%emt 0:01:41]} Rg3 {[%emt 0:00:18] And now ...h3 would win.} 60. Kf4 {[%emt 0:00:38]} Kg8 {[%emt 0:00:48]} 61. Rc5 {[%emt 0:00:28]} Kf7 {[%emt 0:00:25]} 62. Rxb5 {[%emt 0:00:36]} Rxc3 {[%emt 0:00:06]} 63. Kg4 {[%emt 0:00:24]} Rc4+ {[%emt 0:00:06]} 64. Kh3 {[%emt 0:00:29]} Ke7 {[%emt 0:00:05] Weighted Error Value: White=0.20 (precise) /Black=0.19 (very precise)   Loses game:     	---       	Black=1      Missed win:     	White=1     	---        Mistake:       	White=6     	Black=6      Inaccurate:     	White=5     	Black=2      OK:         	White=17    	Black=20     Best:        	White=7     	Black=6      Strong:       	White=1     	---} 1/2-1/2